fUST/lending_fUST_20251122
["ID","MTS","AMOUNT","RATE_DAILY","PERIOD"]
[394615626,1763773841066,-1820.45541686,0.00010995,2]
[394615628,1763773841075,-766.05213207,0.00010995,2]
[394615630,1763773841084,-606.94422986,0.00010995,2]
[394615632,1763773841096,-625.8993504,0.00010995,2]
[394615634,1763773841109,-587.6118366,0.00010995,2]
[394615636,1763773841118,-654.95972239,0.00010995,2]
[394616001,1763773844958,-16929.77916689,0.00010885,2]
[394616003,1763773844970,-5533.5400021,0.00010885,2]
[394616030,1763773845315,506.4163316,0.00011787,7]
[394616071,1763773845711,-9640.72214699,0.00010885,2]
[394616212,1763774225935,765.80413,0.0002,30]
[394616214,1763774352201,375.556059,0.0002,30]
[394616218,1763774926058,303.84979896,0.00011046,7]
[394616219,1763774952152,360.533816,0.0002,30]
[394616220,1763774963558,290.93906334,8.691e-05,2]
[394616221,1763774997221,306.27578227,8.691e-05,2]
[394616222,1763775027786,162.0,9e-05,2]
[394616234,1763775031759,-300.0,9.414e-05,2]
[394616236,1763775031769,-300.0,9.509e-05,2]
[394616238,1763775031778,-150.0,9.654e-05,2]
[394616239,1763775031788,-300.0,9.995e-05,2]
[394616241,1763775031798,-1085.0,9.995e-05,2]
[394616243,1763775031807,-196.46180977,9.996e-05,2]
[394616245,1763775031817,-500.0,9.996e-05,2]
[394616247,1763775031826,-500.0,9.996e-05,2]
[394616249,1763775031836,-500.0,9.996e-05,2]
[394616252,1763775031845,-500.0,9.996e-05,2]
[394616254,1763775031855,-500.0,9.996e-05,2]
[394616255,1763775031864,-500.0,9.996e-05,2]
[394616257,1763775031874,-500.0,9.996e-05,2]
[394616259,1763775031884,-500.0,9.996e-05,2]
[394616261,1763775031893,-500.0,9.996e-05,2]
[394616264,1763775031907,-500.0,9.996e-05,2]
[394616266,1763775031917,-500.0,9.996e-05,2]
[394616270,1763775031927,-500.0,9.996e-05,2]
[394616273,1763775031937,-500.0,9.996e-05,2]
[394616275,1763775031946,-500.0,9.996e-05,2]
[394616277,1763775031955,-500.0,9.996e-05,2]
[394616278,1763775031964,-500.0,9.996e-05,2]
[394616280,1763775031973,-500.0,9.996e-05,2]
[394616281,1763775031982,-500.0,9.996e-05,2]
[394616282,1763775031991,-500.0,9.996e-05,2]
[394616283,1763775032001,-500.0,9.996e-05,2]
[394616284,1763775032011,-500.0,9.996e-05,2]
[394616285,1763775032021,-500.0,9.996e-05,2]
[394616286,1763775032030,-500.0,9.996e-05,2]
[394616287,1763775032039,-500.0,9.996e-05,2]
[394616288,1763775032048,-500.0,9.996e-05,2]
[394616289,1763775032058,-500.0,9.996e-05,2]
[394616290,1763775032067,-500.0,9.996e-05,2]
[394616291,1763775032077,-500.0,9.996e-05,2]
[394616292,1763775032086,-500.0,9.996e-05,2]
[394616293,1763775032095,-500.0,9.996e-05,2]
[394616294,1763775032105,-500.0,9.996e-05,2]
[394616295,1763775032114,-500.0,9.996e-05,2]
[394616296,1763775032123,-500.0,9.996e-05,2]
[394616297,1763775032133,-500.0,9.996e-05,2]
[394616298,1763775032142,-500.0,9.996e-05,2]
[394616299,1763775032155,-500.0,9.996e-05,2]
[394616300,1763775032166,-500.0,9.996e-05,2]
[394616301,1763775032176,-500.0,9.996e-05,2]
[394616302,1763775032187,-500.0,9.996e-05,2]
[394616303,1763775032197,-500.0,9.996e-05,2]
[394616304,1763775032208,-500.0,9.996e-05,2]
[394616305,1763775032218,-500.0,9.996e-05,2]
[394616306,1763775032228,-500.0,9.996e-05,2]
[394616307,1763775032238,-500.0,9.996e-05,2]
[394616308,1763775032248,-212.7367978,9.996e-05,2]
[394616309,1763775032257,-500.0,9.996e-05,2]
[394616310,1763775032268,-500.0,9.996e-05,2]
[394616311,1763775032279,-500.0,9.996e-05,2]
[394616312,1763775032289,-500.0,9.996e-05,2]
[394616313,1763775032306,-500.0,9.996e-05,2]
[394616314,1763775032319,-500.0,9.996e-05,2]
[394616315,1763775032330,-500.0,9.996e-05,2]
[394616316,1763775032341,-500.0,9.996e-05,2]
[394616317,1763775032352,-500.0,9.996e-05,2]
[394616318,1763775032362,-500.0,9.996e-05,2]
[394616319,1763775032372,-500.0,9.996e-05,2]
[394616320,1763775032382,-500.0,9.996e-05,2]
[394616321,1763775032393,-500.0,9.996e-05,2]
[394616322,1763775032410,-500.0,9.996e-05,2]
[394616323,1763775032423,-500.0,9.996e-05,2]
[394616324,1763775032433,-500.0,9.996e-05,2]
[394616325,1763775032444,-500.0,9.996e-05,2]
[394616326,1763775032454,-500.0,9.996e-05,2]
[394616327,1763775032465,-500.0,9.996e-05,2]
[394616328,1763775032474,-534.49747855,9.996e-05,2]
[394616329,1763775032484,-500.0,9.996e-05,2]
[394616330,1763775032493,-500.0,9.996e-05,2]
[394616331,1763775032504,-500.0,9.996e-05,2]
[394616332,1763775032514,-500.0,9.996e-05,2]
[394616333,1763775032524,-500.0,9.996e-05,2]
[394616334,1763775032533,-500.0,9.996e-05,2]
[394616335,1763775032543,-281.45387343,9.996e-05,2]
[394616336,1763775032553,-500.0,9.996e-05,2]
[394616337,1763775032562,-500.0,9.996e-05,2]
[394616338,1763775032572,-500.0,9.996e-05,2]
[394616339,1763775032582,-500.0,9.996e-05,2]
[394616340,1763775032591,-1962.46073804,9.996e-05,2]
[394616341,1763775032601,-1962.46073804,9.996e-05,2]
[394616342,1763775032610,-1962.46073804,9.996e-05,2]
[394616343,1763775032620,-1962.46073804,9.996e-05,2]
[394616344,1763775032630,-1962.46073804,9.996e-05,2]
[394616345,1763775032639,-72.35319217,9.996e-05,2]
[394616356,1763775038280,-1707.53940187,9.896e-05,2]
[394616357,1763775038843,169.12369577,8.691e-05,2]
[394616359,1763775039549,302.89897211,0.0002,30]
[394616497,1763775046610,150.0,0.00017153,30]
[394616499,1763775284413,182.63606771,0.00011041,7]
[394616500,1763775302181,177.95,0.0002,30]
[394616501,1763775303731,338.08,0.0002527,120]
[394616505,1763775331480,5000.0,0.00014,10]
[394616506,1763775334472,-300.0,9.601e-05,2]
[394616507,1763775334499,-300.0,9.698e-05,2]
[394616508,1763775334526,-150.0,9.797e-05,2]
[394616509,1763775334556,-500.0,9.873e-05,2]
[394616510,1763775334582,-300.0,9.894e-05,2]
[394616511,1763775334607,-161.0,9.9e-05,2]
[394616512,1763775334635,-29948.0,0.0001,2]
[394616513,1763775334664,-1000.0,0.00010421,2]
[394616514,1763775334690,-420.0,0.00010883,2]
[394616515,1763775334717,-162.0,0.000109,2]
[394616516,1763775334743,-162.0,0.000109,2]
[394616517,1763775334768,-500.5569819,0.00010952,2]
[394616518,1763775334793,-1500.0,0.00010968,2]
[394616519,1763775334818,-25967.0,0.00011,2]
[394616520,1763775334846,-151.0,0.00011,2]
[394616521,1763775334885,-2000.0,0.00011516,2]
[394616522,1763775334912,-177.0,0.00011797,2]
[394616523,1763775334937,-587.0,0.00011972,2]
[394616524,1763775334961,-2500.0,0.00012064,2]
[394616525,1763775334986,-151.0,0.000121,2]
[394616526,1763775335011,-179.63,0.00012329,2]
[394616527,1763775335037,-185.62,0.00012329,2]
[394616528,1763775335063,-154.68,0.00012329,2]
[394616529,1763775335087,-773.43,0.00012329,2]
[394616530,1763775335111,-821.09823602,0.00012612,2]
[394616531,1763775335134,-991.956,0.000129,2]
[394616532,1763775335159,-632.114,0.000129,2]
[394616533,1763775335182,-2157.001,0.000129,2]
[394616534,1763775335206,-353.13058887,0.00013096,2]
[394616535,1763775335231,-724.0,0.00013169,2]
[394616536,1763775335254,-151.0,0.000132,2]
[394616537,1763775335278,-7162.28652566,0.00013529,2]
[394616538,1763775335302,-1000.0,0.00013699,2]
[394616539,1763775335325,-151.0,0.00013699,2]
[394616540,1763775335349,-151.0,0.00013699,2]
[394616541,1763775335374,-151.0,0.00013699,2]
[394616542,1763775335400,-192.61634,0.00013699,2]
[394616543,1763775335425,-1118.811324,0.00013699,2]
[394616544,1763775335450,-160.0,0.00013699,2]
[394616545,1763775335476,-204.0,0.00013797,2]
[394616546,1763775335499,-500.0,0.000142,2]
[394616547,1763775335523,-250.0,0.000142,2]
[394616548,1763775335550,-250.0,0.000142,2]
[394616549,1763775335574,-250.0,0.000142,2]
[394616550,1763775335599,-250.0,0.000142,2]
[394616551,1763775335625,-250.0,0.000142,2]
[394616552,1763775335650,-250.0,0.000142,2]
[394616553,1763775335675,-250.0,0.000142,2]
[394616554,1763775335700,-1000.0,0.000142,2]
[394616555,1763775335725,-250.0,0.000142,2]
[394616556,1763775335750,-1000.0,0.000142,2]
[394616557,1763775335774,-250.0,0.000142,2]
[394616558,1763775335798,-1000.0,0.000142,2]
[394616559,1763775335822,-370.3408019,0.000142,2]
[394616560,1763775335847,-1000.0,0.000142,2]
[394616561,1763775335872,-1000.0,0.000142,2]
[394616562,1763775335897,-1000.0,0.000142,2]
[394616563,1763775335921,-260.0,0.00014247,2]
[394616564,1763775335945,-306.27578227,0.00014275,2]
[394616565,1763775335968,-151.0,0.000143,2]
[394616566,1763775335992,-506.85299536,0.00014474,2]
[394616567,1763775336014,-3370.3723933,0.00014521,2]
[394616568,1763775336037,-360.0,0.00014795,2]
[394616569,1763775336060,-300.3678215,0.00014956,2]
[394616570,1763775336084,-1337.30371513,0.00015068,2]
[394616571,1763775336108,-592.88891,0.00015068,2]
[394616572,1763775336134,-592.88891,0.00015068,2]
[394616573,1763775336159,-592.88891,0.00015068,2]
[394616574,1763775336184,-592.88891,0.00015068,2]
[394616575,1763775336207,-592.88891,0.00015068,2]
[394616576,1763775336232,-592.88891,0.00015068,2]
[394616577,1763775336257,-592.88891,0.00015068,2]
[394616578,1763775336280,-592.88891,0.00015068,2]
[394616579,1763775336305,-592.88891,0.00015068,2]
[394616580,1763775336329,-592.88891,0.00015068,2]
[394616581,1763775336354,-592.88891,0.00015068,2]
[394616582,1763775336378,-592.88891,0.00015068,2]
[394616583,1763775336402,-592.88891,0.00015068,2]
[394616584,1763775336426,-592.88891,0.00015068,2]
[394616585,1763775336451,-592.88891,0.00015068,2]
[394616586,1763775336476,-592.88891,0.00015068,2]
[394616587,1763775336650,-592.88891,0.00015068,2]
[394616588,1763775336683,-592.88891,0.00015068,2]
[394616589,1763775336708,-592.88891,0.00015068,2]
[394616590,1763775336733,-592.8889,0.00015068,2]
[394616591,1763775336759,-360.533816,0.00015174,2]
[394616592,1763775336783,-460.0,0.00015342,2]
[394616593,1763775336806,-151.0,0.000154,2]
[394616594,1763775336832,-151.0,0.000154,2]
[394616595,1763775336858,-151.0,0.000155,2]
[394616596,1763775336882,-2000.0,0.00015576,7]
[394616597,1763775336907,-231.0,0.00015797,2]
[394616598,1763775336931,-560.0,0.0001589,2]
[394616599,1763775336953,-515.00191302,0.00015979,2]
[394616600,1763775336981,-3000.0,0.00016,2]
[394616601,1763775337005,-151.0,0.00016,2]
[394616602,1763775337028,-3000.0,0.0001601,2]
[394616603,1763775337052,-3744.442002,0.0001602,2]
[394616604,1763775337076,-611.1896485,0.00016093,2]
[394616605,1763775337098,-169.407643,0.00016381,3]
[394616606,1763775337121,-151.0,0.000164,2]
[394616607,1763775337145,-151.0,0.000164,2]
[394616608,1763775337167,-660.0,0.00016438,2]
[394616609,1763775337192,-5132.4311698,0.00016438,2]
[394616610,1763775337215,-3564.18831236,0.00016438,2]
[394616611,1763775337238,-2281.08051991,0.00016438,2]
[394616612,1763775337261,-1283.10779245,0.00016438,2]
[394616613,1763775337283,-712.83766247,0.00016438,2]
[394616614,1763775337307,-1090.62826947,0.00016438,7]
[394616615,1763775337331,-3265.70281632,0.00016438,2]
[394616616,1763775337353,-1836.95783418,0.00016438,2]
[394616617,1763775337377,-816.42570408,0.00016438,2]
[394616618,1763775337401,-204.10642602,0.00016438,2]
[394616619,1763775337424,-509.81149569,0.00016438,7]
[394616620,1763775337447,-551.86789744,0.00016438,2]
[394616621,1763775337471,-310.42569231,0.00016438,2]
[394616622,1763775337495,-172.45871795,0.00016438,2]
[394616623,1763775337518,-151.0,0.00016438,2]
[394616624,1763775337544,-151.0,0.00016438,2]
[394616625,1763775337566,-239.248438,0.00016438,2]
[394616626,1763775337589,-500.0,0.00016458,2]
[394616627,1763775337613,-500.0,0.00016458,2]
[394616628,1763775337643,-151.0,0.000165,2]
[394616629,1763775337666,-1288.73616697,0.00016506,7]
[394616630,1763775337689,-151.0,0.000166,2]
[394616631,1763775337713,-2000.0,0.00016607,7]
[394616632,1763775337735,-500.0,0.00016676,2]
[394616633,1763775337758,-500.0,0.00016676,2]
[394616634,1763775337782,-430.33194603,0.00016692,7]
[394616635,1763775337805,-2037.20673678,0.00016692,7]
[394616636,1763775337828,-528.98244858,0.00016712,2]
[394616637,1763775337852,-952.16840744,0.00016712,2]
[394616638,1763775337876,-1692.74383545,0.00016712,2]
[394616639,1763775337900,-683.62736706,0.00016712,2]
[394616640,1763775337924,-1230.52926071,0.00016712,2]
[394616641,1763775337948,-2187.60757459,0.00016712,2]
[394616642,1763775337972,-3418.1368353,0.00016712,2]
[394616643,1763775337994,-180.6790438,0.0001672,2]
[394616644,1763775338018,-1163.0,0.00016756,2]
[394616645,1763775338043,-4358.15056482,0.0001678,7]
[394616646,1763775338067,-1376.27821502,0.00016863,2]
[394616647,1763775338090,-652.81534645,0.00016863,2]
[394616648,1763775338115,-1163.0,0.00016888,2]
[394616649,1763775338138,-162.0,0.000169,2]
[394616650,1763775338162,-162.0,0.000169,2]
[394616651,1763775338186,-162.0,0.000169,2]
[394616652,1763775338209,-160.0,0.00016921,3]
[394616653,1763775338231,-160.0,0.00016961,4]
[394616654,1763775338253,-760.0,0.00016986,2]
[394616655,1763775338277,-1163.0,0.00016989,2]
[394616656,1763775338300,-160.0,0.00017002,5]
[394616657,1763775338324,-1163.0,0.00017004,2]
[394616658,1763775338346,-919.28408269,0.00017006,2]
[394616659,1763775338369,-1000.0,0.00017006,2]
[394616660,1763775338391,-160.0,0.00017042,6]
[394616661,1763775338414,-624.0342485,0.00017051,7]
[394616662,1763775338440,-353.13058887,0.00017051,7]
[394616663,1763775338464,-360.533816,0.00017057,3]
[394616664,1763775338487,-160.0,0.00017082,7]
[394616665,1763775338510,-1163.0,0.00017119,2]
[394616666,1763775338535,-160.0,0.00017122,8]
[394616667,1763775338562,-360.533816,0.00017156,2]
[394616668,1763775338586,-160.0,0.00017163,9]
[394616669,1763775338610,-1163.0,0.00017175,2]
[394616670,1763775338641,-160.0,0.00017203,10]
[394616671,1763775338666,-1000.0,0.00017224,2]
[394616672,1763775338691,-1000.0,0.00017224,2]
[394616673,1763775338714,-160.0,0.00017243,11]
[394616674,1763775338739,-7162.28652566,0.00017257,2]
[394616675,1763775338762,-160.0,0.00017284,12]
[394616676,1763775338786,-151.0,0.000173,2]
[394616677,1763775338811,-151.0,0.000173,2]
[394616678,1763775338834,-160.0,0.00017324,13]
[394616679,1763775338860,-1163.0,0.00017333,2]
[394616680,1763775338887,-39.1267064,0.00017345,2]
[394616681,1763775347388,5000.0,0.00014,10]
[394616682,1763775354146,1232.4,0.0002,30]
[394616683,1763775355141,5000.0,0.00014,10]
[394616684,1763775559509,303.455251,0.0002,30]
[394616686,1763776155337,291.317041,0.0002,30]
[394616731,1763776233343,-2033.49470654,0.00011435,2]
[394616732,1763776233353,-2033.49470654,0.0001155,2]
[394616733,1763776233362,-557.99361492,0.00011667,2]
[394616741,1763776244035,-1475.50109162,0.0001155,2]
[394616742,1763776244045,-1475.50109162,0.00011667,2]
[394616743,1763776244055,-457.50727175,0.000128,2]
[394616744,1763776244065,-353.13058887,0.00013102,2]
[394616745,1763776244075,-300.0,0.00013593,2]
[394616746,1763776244085,-218.12199987,0.00013692,2]
[394616747,1763776244096,-281.98227244,0.00013692,2]
[394616748,1763776244106,-186.25049697,0.00013692,2]
[394616749,1763776244118,-313.74950303,0.00013692,2]
[394616750,1763776244127,-150.32313346,0.00013692,2]
[394616775,1763776680946,218.0,0.00025,120]
[394616776,1763776770077,279.664359,0.0002,30]
[394616777,1763776776775,10000.0,0.00014,10]
[394616778,1763776788171,10000.0,0.0002,30]
[394616779,1763776799977,6309.0,0.00025279,120]
[394616780,1763777017386,203.78771266,0.00014,10]
[394616781,1763777025436,5000.0,0.00014,10]
[394616784,1763777224967,251.30976363,8.948e-05,2]
[394616785,1763777240395,251.30976363,8.948e-05,2]
[394616786,1763777248127,251.30976363,8.948e-05,2]
[394616787,1763777263249,251.30976363,8.948e-05,2]
[394616788,1763777271058,251.30976363,8.948e-05,2]
[394616789,1763777286707,251.30976363,8.948e-05,2]
[394616790,1763777295149,251.30976363,8.948e-05,2]
[394616791,1763777310363,251.30976363,8.948e-05,2]
[394616792,1763777318136,251.30976363,8.948e-05,2]
[394616793,1763777334067,251.30976363,8.948e-05,2]
[394616794,1763777341875,251.30976363,8.948e-05,2]
[394616795,1763777356992,251.30976363,8.948e-05,2]
[394616796,1763777365229,251.30976363,8.948e-05,2]
[394616797,1763777373884,268.477785,0.0002,30]
[394616798,1763777380364,251.30976363,8.948e-05,2]
[394616799,1763777389017,251.30976363,8.948e-05,2]
[394616800,1763777403879,251.30976363,8.948e-05,2]
[394616801,1763777411666,251.30976363,8.948e-05,2]
[394616802,1763777427022,251.30976363,8.948e-05,2]
[394616831,1763777432137,-251.30976363,9.038e-05,2]
[394616833,1763777432147,-150.0,0.0001071,2]
[394616835,1763777432156,-177.0,0.0001271,2]
[394616837,1763777432165,-5371.7148943,0.00013433,2]
[394616839,1763777432174,-300.0,0.00013499,2]
[394616841,1763777432183,-300.0,0.00013499,2]
[394616843,1763777432192,-300.0,0.00013499,2]
[394616845,1763777432201,-300.0,0.00013499,2]
[394616847,1763777432210,-1200.0,0.00013499,2]
[394616849,1763777432219,-151.0,0.000135,2]
[394616851,1763777432228,-151.0,0.000135,2]
[394616854,1763777432239,-151.0,0.000135,2]
[394616857,1763777432251,-151.0,0.000135,2]
[394616859,1763777432260,-151.0,0.000135,2]
[394616861,1763777432269,-151.0,0.000135,2]
[394616863,1763777432279,-151.0,0.000135,2]
[394616865,1763777432288,-151.0,0.000135,2]
[394616867,1763777432298,-151.0,0.000135,2]
[394616869,1763777432307,-151.0,0.000135,2]
[394616871,1763777432318,-151.0,0.000135,2]
[394616873,1763777432326,-151.0,0.000135,2]
[394616875,1763777432335,-151.0,0.000135,2]
[394616877,1763777432344,-151.0,0.000135,2]
[394616879,1763777432353,-500.0,0.00013528,2]
[394616881,1763777432362,-500.0,0.00013528,2]
[394616883,1763777432371,-500.0,0.00013528,2]
[394616885,1763777432384,-500.0,0.00013528,2]
[394616887,1763777432394,-500.0,0.00013528,2]
[394616889,1763777432403,-500.0,0.00013528,2]
[394616891,1763777432412,-500.0,0.00013528,2]
[394616893,1763777432421,-500.0,0.00013528,2]
[394616894,1763777432430,-500.0,0.00013528,2]
[394616895,1763777432439,-500.0,0.00013528,2]
[394616896,1763777432448,-500.0,0.00013528,2]
[394616897,1763777432457,-500.0,0.00013528,2]
[394616898,1763777432466,-500.0,0.00013528,2]
[394616899,1763777432475,-361.58318746,0.00013528,2]
[394616900,1763777432487,-500.0,0.00013528,2]
[394616901,1763777432504,-500.0,0.00013528,2]
[394616902,1763777432515,-500.0,0.00013528,2]
[394616903,1763777432524,-500.0,0.00013528,2]
[394616904,1763777432535,-500.0,0.00013528,2]
[394616905,1763777432545,-500.0,0.00013528,2]
[394616906,1763777432554,-600.0,0.00013528,2]
[394616907,1763777432563,-500.0,0.00013528,2]
[394616908,1763777432573,-500.0,0.00013528,2]
[394616909,1763777432582,-500.0,0.00013528,2]
[394616910,1763777432591,-500.0,0.00013528,2]
[394616911,1763777432601,-500.0,0.00013528,2]
[394616912,1763777432610,-500.0,0.00013528,2]
[394616913,1763777432619,-500.0,0.00013528,2]
[394616914,1763777432628,-500.0,0.00013528,2]
[394616915,1763777432637,-500.0,0.00013528,2]
[394616916,1763777432646,-500.0,0.00013528,2]
[394616917,1763777432655,-500.0,0.00013528,2]
[394616918,1763777432664,-500.0,0.00013528,2]
[394616919,1763777432674,-500.0,0.00013528,2]
[394616920,1763777432683,-500.0,0.00013528,2]
[394616921,1763777432692,-500.0,0.00013528,2]
[394616922,1763777432702,-400.00000001,0.00013528,2]
[394616923,1763777432711,-500.0,0.00013528,2]
[394616924,1763777432720,-500.0,0.00013528,2]
[394616925,1763777432729,-500.0,0.00013528,2]
[394616926,1763777432739,-500.0,0.00013528,2]
[394616927,1763777432748,-500.0,0.00013528,2]
[394616928,1763777432757,-500.0,0.00013528,2]
[394616929,1763777432767,-500.0,0.00013528,2]
[394616930,1763777432776,-500.0,0.00013528,2]
[394616931,1763777432785,-500.0,0.00013528,2]
[394616932,1763777432794,-500.0,0.00013528,2]
[394616933,1763777432803,-500.0,0.00013528,2]
[394616934,1763777432812,-500.0,0.00013528,2]
[394616935,1763777432822,-500.0,0.00013528,2]
[394616936,1763777432831,-500.0,0.00013528,2]
[394616937,1763777432840,-500.0,0.00013528,2]
[394616938,1763777432850,-500.0,0.00013528,2]
[394616939,1763777432859,-1408.7791792,0.00013528,2]
[394616940,1763777432869,-500.0,0.00013528,2]
[394616941,1763777432879,-1408.7791792,0.00013528,2]
[394616942,1763777432889,-500.0,0.00013528,2]
[394616943,1763777432898,-1408.7791792,0.00013528,2]
[394616944,1763777432908,-500.0,0.00013528,2]
[394616945,1763777432918,-1408.7791792,0.00013528,2]
[394616946,1763777432928,-500.0,0.00013528,2]
[394616947,1763777432938,-1408.7791792,0.00013528,2]
[394616948,1763777432947,-500.0,0.00013528,2]
[394616949,1763777432957,-1408.7791792,0.00013528,2]
[394616950,1763777432966,-500.0,0.00013528,2]
[394616951,1763777432976,-1408.7791792,0.00013528,2]
[394616952,1763777432985,-500.0,0.00013528,2]
[394616953,1763777432995,-1408.7791792,0.00013528,2]
[394616954,1763777433004,-500.0,0.00013528,2]
[394616955,1763777433013,-1408.7791792,0.00013528,2]
[394616956,1763777433022,-500.0,0.00013528,2]
[394616957,1763777433031,-1408.7791792,0.00013528,2]
[394616958,1763777433041,-500.0,0.00013528,2]
[394616959,1763777433050,-1408.7791792,0.00013528,2]
[394616960,1763777433059,-500.0,0.00013528,2]
[394616961,1763777433068,-1408.7791792,0.00013528,2]
[394616962,1763777433077,-500.0,0.00013528,2]
[394616963,1763777433086,-1408.7791792,0.00013528,2]
[394616964,1763777433095,-500.0,0.00013528,2]
[394616965,1763777433104,-1408.7791792,0.00013528,2]
[394616966,1763777433113,-500.0,0.00013528,2]
[394616967,1763777433123,-1408.7791792,0.00013528,2]
[394616968,1763777433132,-500.0,0.00013528,2]
[394616969,1763777433142,-1408.7791792,0.00013528,2]
[394616970,1763777433151,-433.76540973,0.00013528,2]
[394616971,1763777433160,-1064.44475536,0.00013528,2]
[394616972,1763777434752,251.30976363,8.948e-05,2]
[394616988,1763777438098,-151.0,0.00013528,2]
[394616989,1763777438107,-151.0,0.00013528,2]
[394616990,1763777438117,-151.0,0.00013528,2]
[394616991,1763777438126,-45.8032675,0.00013528,2]
[394616992,1763777438138,-105.1967325,0.00013528,2]
[394616993,1763777438147,-151.000008,0.00013528,2]
[394616994,1763777438157,-344.33442384,0.00013528,2]
[394616995,1763777438166,-500.0,0.00013528,2]
[394616996,1763777438176,-1408.7791792,0.00013528,2]
[394616997,1763777438186,-500.0,0.00013528,2]
[394616998,1763777438195,-1271.94845789,0.00013528,2]
[394616999,1763777438211,-136.83072131,0.00013528,2]
[394617000,1763777438221,-1408.7791792,0.00013528,2]
[394617001,1763777438232,-500.0,0.00013528,2]
[394617002,1763777438243,-1408.7791792,0.00013528,2]
[394617003,1763777438255,-500.0,0.00013528,2]
[394617004,1763777438265,-1408.7791792,0.00013528,2]
[394617005,1763777438275,-500.0,0.00013528,2]
[394617006,1763777438286,-1408.7791792,0.00013528,2]
[394617007,1763777438295,-1408.7791792,0.00013528,2]
[394617008,1763777438305,-500.0,0.00013528,2]
[394617009,1763777438316,-1408.7791792,0.00013528,2]
[394617010,1763777438326,-1408.7791792,0.00013528,2]
[394617011,1763777438335,-1408.7791792,0.00013528,2]
[394617012,1763777438345,-1408.7791792,0.00013528,2]
[394617013,1763777438354,-640.11031918,0.00013528,2]
[394617014,1763777438366,-768.66886002,0.00013528,2]
[394617015,1763777438376,-300.49355478,0.00013528,2]
[394617016,1763777438387,-1108.28562442,0.00013528,2]
[394617017,1763777438396,-1408.7791792,0.00013528,2]
[394617018,1763777438406,-1408.7791792,0.00013528,2]
[394617019,1763777438415,-1408.7791792,0.00013528,2]
[394617020,1763777438424,-1408.7791792,0.00013528,2]
[394617021,1763777438435,-1408.7791792,0.00013528,2]
[394617022,1763777438444,-1408.7791792,0.00013528,2]
[394617023,1763777438453,-1408.7791792,0.00013528,2]
[394617024,1763777438462,-1408.7791792,0.00013528,2]
[394617025,1763777438471,-1408.7791792,0.00013528,2]
[394617026,1763777438482,-1408.7791792,0.00013528,2]
[394617027,1763777438491,-1408.7791792,0.00013528,2]
[394617028,1763777438500,-1408.7791792,0.00013528,2]
[394617029,1763777438510,-1408.7791792,0.00013528,2]
[394617030,1763777438520,-1408.7791792,0.00013528,2]
[394617031,1763777438529,-1408.7791792,0.00013528,2]
[394617032,1763777438539,-1408.7791792,0.00013528,2]
[394617033,1763777438549,-1408.7791792,0.00013528,2]
[394617034,1763777438559,-1408.7791792,0.00013528,2]
[394617035,1763777438568,-1408.7791792,0.00013528,2]
[394617037,1763777438577,-1397.8016791,0.00013528,2]
[394617039,1763777438587,-1397.8016791,0.00013528,2]
[394617040,1763777438597,-1397.8016791,0.00013528,2]
[394617041,1763777438607,-1397.8016791,0.00013528,2]
[394617042,1763777438616,-1397.8016791,0.00013528,2]
[394617043,1763777438625,-1397.8016791,0.00013528,2]
[394617044,1763777438635,-1397.8016791,0.00013528,2]
[394617045,1763777438644,-1397.8016791,0.00013528,2]
[394617046,1763777438654,-1397.8016791,0.00013528,2]
[394617047,1763777438664,-1397.8016791,0.00013528,2]